bitfinex/quotes_SOLUSD_20250811
["timestamp","ask_amount","ask_price","bid_price","bid_amount"]
[1754927051148,0.03,179.74,179.73,51.49893788]
[1754927051623,0.69,179.74,179.73,51.49893788]
[1754927052449,0.69,179.74,179.73,45.5639014]
[1754927052621,0.69,179.74,179.73,51.49893788]
[1754927053134,0.03,179.74,179.73,51.49893788]
[1754927054522,0.69,179.74,179.73,51.49893788]
[1754927054827,0.69,179.74,179.73,5.93503648]
[1754927055029,0.69,179.74,179.73,45.93503648]
[1754927055532,0.69,179.74,179.73,40.0]
[1754927055934,0.69,179.74,179.72,5.93503648]
[1754927056111,6.62503648,179.74,179.73,40.0]
[1754927056440,0.69,179.74,179.73,40.0]
[1754927058905,0.03,179.74,179.73,67.28515345]
[1754927061063,0.03,179.74,179.73,66.60515345]
[1754927062126,0.03,179.74,179.73,51.47893788]
[1754927063945,0.69,179.74,179.73,39.98]
[1754927064335,0.69,179.74,179.71,87.6]
[1754927064536,6.62503648,179.74,179.72,39.98]
[1754927064734,0.66,179.73,179.72,39.98]
[1754927065746,0.69,179.74,179.72,39.98]
[1754927065946,0.66,179.73,179.72,39.98]
[1754927068040,6.59503648,179.73,179.72,39.98]
[1754927068449,0.66,179.73,179.72,39.98]
[1754927069932,0.03,179.74,179.72,39.98]
[1754927070132,0.03,179.74,179.72,46.57503648]
[1754927070342,0.03,179.74,179.72,45.91503648]
[1754927071166,0.03,179.74,179.73,5.93503648]
[1754927071349,0.03,179.74,179.73,6.59503648]
[1754927071942,0.7,179.74,179.72,45.54412505]
[1754927072276,0.03,179.74,179.73,5.93503648]
[1754927072489,0.03,179.74,179.73,6.59503648]
[1754927072693,0.03,179.74,179.71,5.5644266]
[1754927072869,6.60503648,179.73,179.69,5.62505761]
[1754927073173,0.03,179.74,179.73,5.5639014]
[1754927073475,0.03,179.74,179.73,51.45893788]
[1754927073670,0.03,179.74,179.73,52.11893788]
[1754927074170,0.03,179.74,179.73,67.22515345]
[1754927075155,0.03,179.74,179.73,71.90279245]
[1754927076174,0.67,179.83,179.76,26.0]
[1754927076351,0.67,179.83,179.81,5.93503648]
[1754927076557,0.67,179.83,179.82,39.96]
[1754927076754,4.83158799,179.83,179.82,39.96]
[1754927077573,10.76662447,179.83,179.82,39.96]
[1754927078074,4.83158799,179.83,179.82,39.96]
[1754927078274,10.76662447,179.83,179.82,39.96]
[1754927078474,16.32743189,179.83,179.82,39.96]
[1754927078667,10.39239541,179.83,179.82,39.96]
[1754927078869,4.83158799,179.83,179.82,39.96]
[1754927079260,10.76662447,179.83,179.82,39.96]
[1754927079468,10.76434667,179.83,179.82,39.96]
[1754927079661,16.32515409,179.83,179.82,39.96]
[1754927079864,4.82923299,179.83,179.82,39.96]
[1754927080063,4.15923299,179.83,179.82,39.96]
[1754927080267,4.82923299,179.83,179.82,39.96]
[1754927080863,4.15923299,179.83,179.82,39.96]
[1754927083882,6.22994672,179.86,179.82,46.55503648]
[1754927084062,4.15554712,179.85,179.82,40.62]
[1754927084383,4.82554712,179.85,179.82,45.89503648]
[1754927084582,0.67,179.84,179.82,39.96]
[1754927085080,5.56026134,179.85,179.82,39.96]
[1754927085273,5.56026134,179.85,179.76,128.70621557]
[1754927085274,0.67,179.84,179.83,39.92]
[1754927085470,10.75927966,179.84,179.83,39.92]
[1754927085671,6.60503648,179.84,179.83,39.92]
[1754927086080,10.75932659,179.84,179.83,39.92]
[1754927086273,150.75932659,179.84,179.83,39.92]
[1754927086588,156.31982481,179.84,179.83,39.92]
[1754927087080,9.71478833,179.84,179.83,39.92]
[1754927087280,6.60503648,179.87,179.83,40.58]
[1754927087466,4.82330536,179.86,179.83,39.92]
[1754927087670,0.67,179.86,179.83,39.92]
[1754927088371,32.60503648,179.87,179.83,39.92]
[1754927088570,4.15186944,179.86,179.83,39.92]
[1754927088773,4.82186944,179.86,179.83,39.92]
[1754927089066,6.60503648,179.85,179.83,39.92]
[1754927089690,6.60503648,179.84,179.79,5.93503648]
[1754927089885,0.67,179.83,179.8,39.92]
[1754927090084,0.67,179.82,179.77,6.22257843]
[1754927090385,0.67,179.84,179.79,5.93503648]
[1754927090583,6.23072694,179.84,179.8,0.66]
[1754927090770,11.49576342,179.84,179.81,39.9]
[1754927091103,6.60503648,179.83,179.81,39.9]
[1754927091287,5.93503648,179.83,179.81,39.9]
[1754927091462,0.67,179.82,179.81,39.9]
[1754927092062,5.56072694,179.84,179.81,39.9]
[1754927092291,11.49576342,179.84,179.81,39.9]
[1754927092589,12.16576342,179.84,179.81,39.9]
[1754927093481,6.23072694,179.84,179.81,39.9]
[1754927094284,11.49491638,179.86,179.82,0.66]
[1754927094876,5.5598799,179.86,179.83,0.66]
[1754927095674,5.5596187,179.87,179.84,39.9]
[1754927095972,6.2296187,179.87,179.84,39.9]
[1754927096786,5.5596187,179.87,179.84,39.9]
[1754927097101,5.55936752,179.88,179.85,0.66]
[1754927098385,12.164404,179.88,179.84,45.83503648]
[1754927098620,12.164404,179.88,179.84,40.62]
[1754927098899,0.71,179.87,179.84,39.9]
[1754927100093,6.64503648,179.87,179.84,39.9]
[1754927100293,5.5598799,179.86,179.84,39.9]
[1754927100512,12.20491638,179.86,179.84,39.9]
[1754927100803,12.20491638,179.86,179.84,39.88]
[1754927100999,11.49491638,179.86,179.84,39.88]
[1754927101381,6.64503648,179.85,179.8,0.72]
[1754927101577,5.93503648,179.84,179.81,39.88]
[1754927101777,6.64503648,179.84,179.81,39.88]
[1754927102001,5.93503648,179.84,179.81,40.6]
[1754927102199,5.93503648,179.83,179.81,40.6]
[1754927102409,11.49576721,179.84,179.81,40.6]
[1754927102614,5.56073073,179.84,179.81,40.6]
[1754927103122,11.49576721,179.84,179.81,40.6]
[1754927104187,5.56073073,179.84,179.81,40.6]
[1754927104497,11.49576721,179.84,179.81,40.6]
[1754927105302,11.49576721,179.84,179.82,0.72]
[1754927105504,6.64503648,179.83,179.81,39.88]
[1754927105814,5.56073073,179.84,179.82,39.88]
[1754927106011,5.56073073,179.84,179.81,39.86]
[1754927106310,0.71,179.83,179.81,39.86]
[1754927106509,14.60989403,179.86,179.81,40.58]
[1754927106716,5.56018904,179.85,179.82,0.72]
[1754927106901,5.93503648,179.84,179.81,39.86]
[1754927107212,5.93503648,179.83,179.81,39.86]
[1754927107696,5.56104965,179.83,179.81,40.58]
[1754927107902,11.49608613,179.83,179.81,40.58]
[1754927108102,5.56104965,179.83,179.81,40.58]
[1754927108599,5.56104965,179.83,179.81,39.86]
[1754927108908,5.56104965,179.83,179.82,0.72]
[1754927109696,5.56104965,179.83,179.81,39.86]
[1754927109905,5.56104965,179.83,179.81,40.58]
[1754927110321,5.56104965,179.83,179.81,39.86]
[1754927110322,12.20608613,179.83,179.81,39.86]
[1754927110497,6.27104965,179.83,179.81,39.86]
[1754927110696,12.20608613,179.83,179.81,39.86]
[1754927110919,5.93503648,179.82,179.81,39.86]
[1754927112211,11.49615315,179.82,179.81,39.86]
[1754927112518,16.35851424,179.82,179.76,0.72]
[1754927112705,6.27111667,179.82,179.77,45.79503648]
[1754927112911,5.93503648,179.81,179.78,0.72]
[1754927113208,5.93503648,179.81,179.79,0.72]
[1754927113633,5.93503648,179.8,179.77,40.58]
[1754927113822,11.49683738,179.8,179.78,0.72]
[1754927114028,5.93503648,179.83,179.79,0.72]
[1754927114210,26.0,179.84,179.8,39.86]
[1754927114412,10.09076937,179.83,179.8,40.58]
[1754927114628,5.93503648,179.83,179.8,40.58]
[1754927114928,151.49591711,179.83,179.8,40.58]
[1754927115123,5.56088063,179.83,179.81,0.72]
[1754927116020,31.56059216,179.84,179.81,0.72]
[1754927116221,4.15777509,179.83,179.81,0.72]
[1754927116525,4.15777509,179.83,179.82,0.72]
[1754927116723,5.56028991,179.85,179.82,0.72]
[1754927116931,4.15919944,179.84,179.83,39.84]
[1754927117102,4.15919635,179.84,179.81,5.93503648]
[1754927117308,4.15919635,179.84,179.82,40.56]
[1754927117610,9.71971344,179.84,179.82,40.56]
[1754927117812,5.56051709,179.84,179.82,40.56]
[1754927118022,5.56051709,179.84,179.83,39.84]
[1754927118332,9.72104959,179.84,179.82,0.72]
[1754927118634,5.56051709,179.84,179.83,39.84]
[1754927118830,9.72450367,179.84,179.83,39.84]
[1754927121530,9.72450367,179.84,179.79,39.84]
[1754927121531,10.80902306,179.84,179.79,39.84]
[1754927121837,5.93503648,179.8,179.77,0.72]
[1754927122020,9.56122178,179.83,179.77,39.84]
[1754927122021,5.93503648,179.78,179.77,39.84]
[1754927122515,10.1009348,179.78,179.77,39.84]
[1754927122835,10.8109348,179.78,179.77,39.84]
[1754927123016,4.87589832,179.78,179.77,39.84]
[1754927123217,10.8109348,179.78,179.77,39.84]
[1754927123536,16.37328878,179.78,179.77,39.84]
[1754927124328,15.66328878,179.78,179.77,39.84]
[1754927124730,9.7282523,179.78,179.77,39.84]
[1754927124932,15.66328878,179.78,179.77,39.84]
[1754927125229,5.56235398,179.78,179.77,39.84]
[1754927125430,11.49677174,179.8,179.77,40.56]
[1754927125635,5.56235398,179.78,179.77,40.56]
[1754927125831,11.49677174,179.8,179.77,40.56]
[1754927126023,4.1619964,179.79,179.78,0.72]
[1754927126218,5.56173526,179.8,179.77,39.84]
[1754927126419,5.56173526,179.8,179.77,40.56]
[1754927126721,11.49677174,179.8,179.77,40.56]
[1754927126923,5.56173526,179.8,179.78,0.72]
[1754927127245,11.49677174,179.8,179.78,0.72]
[1754927127539,11.49677174,179.8,179.77,39.84]
[1754927127742,11.49677174,179.8,179.77,40.56]
[1754927127929,5.56173526,179.8,179.77,40.56]
[1754927128124,11.49677174,179.8,179.77,40.56]
[1754927128332,12.20677174,179.8,179.77,39.84]
[1754927128532,5.93503648,179.79,179.77,39.84]
[1754927128836,10.78612035,179.78,179.75,39.82]
[1754927129146,0.69,179.78,179.75,39.82]
[1754927129348,5.93503648,179.79,179.76,0.67]
[1754927129545,5.93503648,179.79,179.77,0.67]
[1754927129738,5.56173526,179.8,179.77,0.67]
[1754927129925,15.65709723,179.79,179.77,0.67]
[1754927130124,11.49735398,179.79,179.77,0.67]
[1754927130427,11.49735398,179.79,179.75,40.49]
[1754927130630,11.49735398,179.79,179.76,0.67]
[1754927131040,11.49735398,179.79,179.77,0.67]
[1754927131722,11.49735398,179.79,179.75,40.49]
[1754927131921,5.5623175,179.79,179.75,39.82]
[1754927132221,11.49735398,179.79,179.76,0.67]
[1754927132422,4.84815649,179.78,179.75,39.82]
[1754927132642,5.5623175,179.79,179.75,39.82]
[1754927132840,5.93503648,179.79,179.76,0.67]
[1754927133041,5.93503648,179.77,179.75,39.82]
[1754927133348,5.93503648,179.77,179.74,39.82]
[1754927133646,5.93503648,179.8,179.75,6.60503648]
[1754927133817,5.93503648,179.8,179.75,5.93503648]
[1754927134022,6.62503648,179.8,179.76,0.67]
[1754927134221,12.18704331,179.8,179.76,0.67]
[1754927135156,5.56200683,179.8,179.77,0.67]
[1754927135328,145.56145119,179.81,179.78,0.67]
[1754927135528,5.56145119,179.81,179.78,0.67]
[1754927136237,12.18648767,179.81,179.76,0.67]
[1754927136562,5.93503648,179.8,179.77,0.67]
[1754927136738,6.25145119,179.81,179.77,0.67]
[1754927136739,12.18648767,179.81,179.77,0.67]
[1754927138129,6.25145119,179.81,179.77,0.67]
[1754927138324,12.18648767,179.81,179.77,0.67]
[1754927139147,11.49648767,179.81,179.76,5.93503648]
[1754927139323,5.5620446,179.79,179.76,6.60503648]
[1754927139743,5.5620446,179.79,179.74,45.44351687]
[1754927139744,5.5620446,179.79,179.75,5.93503648]
[1754927140133,5.93503648,179.77,179.74,40.55]
[1754927140454,6.62503648,179.78,179.74,40.55]
[1754927140753,0.69,179.78,179.74,46.48503648]
[1754927141248,158.58046152,179.82,179.74,45.81503648]
[1754927141451,10.40885411,179.81,179.75,0.67]
[1754927141630,5.93503648,179.79,179.75,0.67]
[1754927142148,6.62503648,179.79,179.75,6.60503648]
[1754927142551,10.78321854,179.78,179.74,39.86]
[1754927142757,0.69,179.78,179.74,45.79503648]
[1754927143051,0.69,179.78,179.74,46.46503648]
[1754927143247,5.93503648,179.79,179.74,45.79503648]
[1754927143454,6.62503648,179.8,179.76,5.93503648]
[1754927143633,6.62503648,179.79,179.74,40.53]
[1754927144242,6.62503648,179.79,179.75,5.93503648]
[1754927144442,6.62503648,179.79,179.74,46.46503648]
[1754927144645,10.78434369,179.78,179.74,39.86]
[1754927144848,6.62503648,179.77,179.74,39.86]
[1754927145453,6.25274097,179.77,179.74,39.86]
[1754927146238,12.18777745,179.77,179.74,0.06]
[1754927146553,11.49777745,179.77,179.74,40.53]
[1754927147546,5.56274097,179.77,179.74,40.53]
[1754927147857,11.49777745,179.77,179.74,40.53]
[1754927148441,12.18777745,179.77,179.74,40.53]
[1754927148644,6.25173526,179.8,179.75,6.60503648]
[1754927148856,5.5614883,179.81,179.76,0.67]
[1754927149049,6.2514883,179.81,179.77,0.67]
[1754927149369,5.93503648,179.78,179.74,39.84]
[1754927149544,5.5617877,179.8,179.76,5.93503648]
[1754927149747,0.69,179.82,179.77,6.60503648]
[1754927149938,4.15878574,179.81,179.78,6.60503648]
[1754927150143,4.15878574,179.81,179.78,0.67]
[1754927150340,5.93503648,179.8,179.76,0.67]
[1754927150560,4.8493575,179.79,179.75,5.93503648]
[1754927150766,0.69,179.79,179.75,5.93503648]
[1754927150954,0.69,179.79,179.75,6.60503648]
[1754927151160,5.93503648,179.81,179.76,6.60503648]
[1754927151347,4.15924159,179.8,179.76,0.67]
[1754927151561,144.15924159,179.8,179.76,6.60503648]
[1754927151749,145.56198626,179.8,179.76,6.60503648]
[1754927152056,0.69,179.79,179.74,40.51]
[1754927152274,4.84968928,179.79,179.76,5.93503648]
[1754927152564,0.69,179.79,179.76,5.93503648]
[1754927152868,145.56198626,179.8,179.76,5.93503648]
[1754927153058,145.56198626,179.8,179.76,6.60503648]
[1754927153365,0.69,179.79,179.76,5.93503648]
[1754927153566,0.69,179.78,179.74,46.44503648]
[1754927153740,6.25248128,179.78,179.74,40.51]
[1754927153940,6.25248128,179.78,179.74,46.44503648]
[1754927154134,0.69,179.77,179.74,45.77503648]
[1754927154341,11.49751776,179.78,179.74,39.84]
[1754927154543,0.69,179.76,179.74,39.84]
[1754927155661,5.56248128,179.78,179.75,6.60503648]
[1754927155861,5.93503648,179.79,179.75,6.60503648]
[1754927155862,5.56213729,179.79,179.75,5.93503648]
[1754927156167,4.16033715,179.78,179.76,0.67]
[1754927156342,5.56213729,179.79,179.76,6.60503648]
[1754927156965,145.56179541,179.8,179.77,0.67]
[1754927157167,4.16020761,179.79,179.77,0.67]
[1754927157947,4.16020761,179.79,179.77,6.60503648]
[1754927158153,9.72228585,179.79,179.77,6.60503648]
[1754927158365,5.56207824,179.79,179.77,0.67]
[1754927158547,5.56207824,179.79,179.75,0.71]
[1754927158742,5.56207824,179.79,179.76,6.64503648]
[1754927158965,5.56207824,179.79,179.76,5.93503648]
[1754927159370,5.56207824,179.79,179.76,6.64503648]
[1754927159575,5.56207824,179.79,179.76,5.93503648]
[1754927159768,5.56207824,179.79,179.77,0.71]
[1754927160783,145.56181775,179.8,179.77,5.93503648]
[1754927160972,0.03,179.79,179.76,6.64503648]
[1754927161182,0.03,179.79,179.74,0.06]
[1754927161183,26.0,179.77,179.74,0.06]
[1754927161471,0.03,179.79,179.75,0.71]
[1754927161681,4.19133637,179.79,179.76,5.93503648]
[1754927161885,4.87133637,179.78,179.74,45.75503648]
[1754927162052,5.93503648,179.75,179.74,0.06]
[1754927162251,10.09649843,179.75,179.74,0.06]
[1754927162454,4.16146195,179.75,179.74,0.06]
[1754927162664,19.46823895,179.78,179.74,6.70503648]
[1754927162894,5.56235398,179.78,179.77,5.93503648]
[1754927163198,5.56235398,179.78,179.77,6.64503648]
[1754927164064,0.03,179.79,179.77,6.64503648]
[1754927164264,0.03,179.79,179.77,0.71]
[1754927164593,0.03,179.79,179.77,5.93503648]
[1754927165212,4.19282924,179.79,179.77,0.71]
[1754927165376,0.03,179.79,179.77,6.64503648]
[1754927165691,0.03,179.79,179.76,5.93503648]
[1754927166003,0.03,179.79,179.77,5.93503648]
[1754927166225,9.75625219,179.79,179.77,5.93503648]
[1754927166380,5.5920446,179.79,179.77,6.64503648]
[1754927166698,0.03,179.79,179.78,6.64503648]
[1754927166910,0.03,179.79,179.78,0.71]
[1754927167208,0.03,179.79,179.78,6.64503648]
[1754927170401,0.03,179.79,179.78,12.20739046]
[1754927170988,0.03,179.83,179.79,15.10621557]
[1754927171189,0.03,179.83,179.82,5.93503648]
[1754927172029,0.03,179.83,179.82,6.64503648]
[1754927172311,0.03,179.83,179.82,12.20615315]
[1754927173018,0.03,179.83,179.82,6.64503648]
[1754927173309,0.03,179.83,179.82,12.20615315]
[1754927173513,0.03,179.83,179.82,27.31236872]
[1754927175505,0.03,179.83,179.82,72.38503648]
[1754927175686,0.03,179.83,179.82,93.05236872]
[1754927177989,0.03,179.83,179.82,180.65236872]
[1754927179119,0.03,179.83,179.82,174.71733224]
[1754927179323,0.03,179.83,179.82,93.05236872]
[1754927180925,0.03,179.83,179.82,31.93503648]
[1754927181101,0.03,179.83,179.82,71.67503648]
[1754927181303,0.03,179.83,179.82,72.38503648]
[1754927182418,0.03,179.83,179.82,71.67503648]
[1754927182616,0.03,179.83,179.82,72.38503648]
[1754927182824,0.03,179.83,179.82,66.45]
[1754927183016,0.74,179.83,179.79,2.936242]
[1754927183209,0.71,179.82,179.8,45.67503648]
[1754927183414,0.03,179.83,179.8,39.74]
[1754927183615,0.71,179.82,179.8,45.67503648]
[1754927183932,12.20669995,179.81,179.76,5.93503648]
[1754927184102,12.20669995,179.81,179.77,39.74]
[1754927184103,0.71,179.8,179.77,39.74]
[1754927184303,6.27121243,179.82,179.79,5.93503648]
[1754927184504,0.03,179.83,179.81,5.93503648]
[1754927184709,0.03,179.83,179.82,45.67503648]
[1754927185125,0.03,179.83,179.82,39.74]
[1754927185332,0.03,179.83,179.82,61.49125205]
[1754927186016,0.03,179.83,179.82,61.11733224]
[1754927186222,0.03,179.83,179.82,5.93503648]
[1754927186518,6.67503648,179.83,179.82,39.76]
[1754927187128,6.67503648,179.83,179.8,39.78]
[1754927187446,11.87007296,179.81,179.75,0.06]
[1754927187743,166.0,179.8,179.75,39.86]
[1754927187918,11.49764427,179.78,179.75,39.86]
[1754927188249,0.71,179.77,179.75,39.86]
[1754927188539,6.2120694,179.79,179.75,45.79503648]
[1754927188758,0.65,179.79,179.75,40.54]
[1754927188944,12.14668938,179.81,179.76,5.93503648]
[1754927189138,0.65,179.81,179.78,5.93503648]
[1754927189319,0.03,179.83,179.8,5.93503648]
[1754927189525,0.03,179.83,179.82,5.93503648]
[1754927189744,0.03,179.83,179.82,45.75503648]
[1754927190328,0.03,179.83,179.82,49.26933188]
[1754927191856,0.68,179.83,179.76,32.24274842]
[1754927192140,0.65,179.82,179.79,9.44933188]
[1754927192348,0.65,179.81,179.8,39.82]
[1754927192749,10.12933188,179.83,179.8,39.82]
[1754927192936,0.68,179.83,179.8,39.82]
[1754927193448,0.68,179.83,179.81,9.44933188]
[1754927193449,0.03,179.83,179.81,9.44933188]
[1754927193752,0.03,179.83,179.82,9.44933188]
[1754927196155,0.03,179.83,179.78,6.24231042]
[1754927196447,0.68,179.83,179.82,9.44933188]
[1754927196623,0.68,179.83,179.82,39.84]
[1754927196823,0.68,179.83,179.81,9.44933188]
[1754927197025,0.68,179.83,179.82,39.84]
[1754927197426,15.6901393,179.83,179.82,39.84]
[1754927197627,6.24080742,179.83,179.82,39.84]
[1754927198136,5.59080742,179.83,179.82,39.84]
[1754927199030,6.24080742,179.83,179.82,39.84]
[1754927199448,5.59080742,179.83,179.82,39.84]
[1754927199754,0.03,179.83,179.81,49.26933188]
[1754927200166,0.03,179.83,179.81,39.82]
[1754927200370,0.03,179.83,179.81,40.5]
[1754927200736,0.03,179.83,179.82,10.12933188]
[1754927201672,0.03,179.83,179.82,9.44933188]
[1754927202042,0.03,179.83,179.82,10.12933188]
[1754927202764,0.03,179.83,179.82,15.69044855]
[1754927203154,0.03,179.83,179.82,10.12933188]
[1754927203351,0.03,179.83,179.81,39.82]
[1754927203555,0.03,179.83,179.82,9.44933188]
[1754927203949,0.03,179.83,179.81,39.82]
[1754927204244,0.68,179.83,179.79,0.06]
[1754927204450,10.09933188,179.82,179.8,39.8]
[1754927205170,0.65,179.82,179.8,39.8]
[1754927205366,0.03,179.83,179.8,39.8]
[1754927205564,0.68,179.83,179.8,39.8]
[1754927205870,0.65,179.82,179.8,39.8]
[1754927206053,6.21128174,179.82,179.8,39.8]
[1754927206256,9.47933188,179.83,179.8,39.8]
[1754927206257,5.59089814,179.83,179.8,49.24933188]
[1754927206451,0.03,179.83,179.81,9.44933188]
[1754927206654,0.68,179.83,179.8,49.24933188]
[1754927206853,6.24095456,179.83,179.8,39.8]
[1754927207254,5.59095456,179.83,179.81,9.44933188]
[1754927207459,5.59095456,179.83,179.81,10.12933188]
[1754927207652,5.59095456,179.83,179.81,9.44933188]
[1754927207849,0.03,179.83,179.82,39.78]
[1754927209288,0.03,179.83,179.82,49.22933188]
[1754927209582,0.03,179.83,179.82,49.90933188]
[1754927209944,0.03,179.83,179.82,39.78]
[1754927211053,0.68,179.83,179.82,39.78]
[1754927211270,15.6901393,179.83,179.82,39.78]
[1754927211650,10.39579548,179.83,179.82,39.78]
[1754927211866,19.84512736,179.83,179.79,0.06]
[1754927212062,4.80498806,179.82,179.79,0.06]
[1754927212248,5.91195788,179.8,179.79,0.06]
[1754927213155,12.12369314,179.8,179.79,0.06]
[1754927213358,5.56173526,179.8,179.79,0.06]
[1754927213873,5.56150293,179.81,179.79,0.06]
[1754927214453,6.21150293,179.81,179.79,0.06]
[1754927214670,5.56150293,179.81,179.79,0.06]
[1754927214973,5.59087962,179.83,179.8,9.45672405]
[1754927215147,0.03,179.83,179.8,49.89672405]
[1754927215353,4.18337772,179.83,179.8,39.76]
[1754927215653,9.45672405,179.81,179.79,0.06]
[1754927215870,9.45672405,179.8,179.79,0.06]
[1754927216085,10.10672405,179.82,179.79,0.06]
[1754927216674,0.03,179.83,179.79,0.06]
[1754927216857,9.45672405,179.82,179.79,0.06]
[1754927217278,15.01802701,179.82,179.79,0.06]
[1754927217776,15.66802701,179.82,179.79,0.06]
[1754927218284,9.45672405,179.81,179.79,0.06]
[1754927218586,9.45672405,179.8,179.79,0.06]
[1754927218772,10.15672405,179.8,179.79,0.06]
[1754927219257,15.71845931,179.8,179.79,0.06]
[1754927220392,5.56173526,179.8,179.79,0.06]
[1754927220561,15.71845931,179.8,179.79,0.06]
[1754927221360,19.87322073,179.8,179.79,0.06]
[1754927221766,10.41649668,179.8,179.79,0.06]
[1754927221968,19.87322073,179.8,179.79,0.06]
[1754927222651,9.71649668,179.8,179.79,0.06]
[1754927222967,5.56173526,179.8,179.79,0.06]
[1754927223478,26.0,179.8,179.79,0.06]
[1754927223663,40.31167348,179.8,179.79,0.06]
[1754927224551,30.85494943,179.8,179.79,0.06]
[1754927224778,40.31167348,179.8,179.79,0.06]
[1754927225189,15.10621557,179.76,179.75,0.06]
[1754927225397,38.95693216,179.76,179.74,0.06]
[1754927225558,14.31167348,179.75,179.72,0.06]
[1754927225761,15.10621557,179.73,179.72,1e-08]
[1754927225958,15.10621557,179.7,179.68,0.06]
[1754927226159,49.261165,179.69,179.68,0.06]
[1754927226461,59.41788905,179.69,179.65,0.06]
[1754927226660,29.41788905,179.68,179.67,1e-08]
[1754927226876,15.10621557,179.66,179.65,1e-08]
[1754927227081,68.75788905,179.66,179.65,1e-08]
[1754927227263,99.45788905,179.66,179.65,1e-08]
[1754927227462,105.02395829,179.66,179.65,1e-08]
[1754927227668,100.86900886,179.66,179.65,1e-08]
[1754927229281,100.86900886,179.66,179.64,1e-08]
[1754927229282,110.32573291,179.66,179.64,1e-08]
[1754927229462,110.32573291,179.66,179.61,0.2]
[1754927229463,26.0,179.63,179.62,1e-08]
[1754927229662,79.75426287,179.63,179.62,1e-08]
[1754927229886,80.45426287,179.63,179.62,1e-08]
[1754927230067,95.56047844,179.63,179.62,1e-08]
[1754927230464,56.0,179.63,179.62,1e-08]
[1754927230781,61.56699883,179.63,179.62,1e-08]
[1754927230980,56.0,179.63,179.62,1e-08]
[1754927231158,30.0,179.63,179.62,0.72000001]
[1754927231792,30.0,179.63,179.62,10.17672406]
[1754927232160,0.7,179.71,179.62,10.17672406]
[1754927232389,26.0,179.69,179.66,9.45672405]
[1754927232583,30.0,179.67,179.66,10.17672405]
[1754927232884,30.0,179.67,179.66,0.72]
[1754927233094,30.0,179.67,179.63,0.72]
[1754927233396,30.0,179.67,179.64,0.72]
[1754927233584,30.0,179.67,179.66,9.45672405]
[1754927234269,35.56583948,179.67,179.65,0.72]
[1754927234465,9.45672405,179.66,179.62,9.45672406]
[1754927234663,35.56583948,179.67,179.63,9.45672405]
[1754927234895,30.0,179.65,179.64,10.17672405]
[1754927235371,30.0,179.65,179.64,0.72]
[1754927235576,31.56517209,179.69,179.64,10.17672405]
[1754927235772,5.56478327,179.71,179.68,9.45672405]
[1754927236085,5.56359185,179.74,179.7,9.45672405]
[1754927236414,5.56297285,179.76,179.73,9.45672405]
[1754927236569,5.56297285,179.76,179.74,9.45672405]
[1754927236771,5.56297285,179.76,179.73,10.17672405]
[1754927236965,5.56297285,179.76,179.73,9.45672405]
[1754927237166,5.56297285,179.76,179.7,0.72]
[1754927237167,15.0196969,179.76,179.7,0.72]
[1754927237384,0.7,179.75,179.69,9.45672405]
[1754927237564,9.45672405,179.72,179.67,10.17672405]
[1754927237768,0.7,179.71,179.64,40.9]
[1754927238085,0.7,179.71,179.65,9.45672405]
[1754927238394,149.45672405,179.7,179.65,9.45672405]
[1754927238699,9.45672405,179.69,179.65,10.17672405]
[1754927238871,5.56513996,179.69,179.65,10.17672405]
[1754927239071,15.02186401,179.69,179.65,0.72]